{"text_format":"1","workbook":"xlsx","n_sheets":8,"sheets":["Fall & Spring ","Summer","Drop-Down References","Proposed Fall & Spring","Proposed Summer","Simple Example","Med Example","Complex Example"],"not_rendered":{"charts":0,"images":0,"macros":1,"external_links":0,"defined_names":6,"comments":0,"pivot_tables":0},"unopened":[],"bounds":{"document_bytes":16777216,"sheet_cells":100000,"rows_first":2000,"rows_last":500,"rows_between":2000,"halvings":0,"cell_chars":16384,"cell_head_chars":4096},"cells_cut":0,"cells_raw":0,"read":"row_number_cap","date_system":"1900"}

{"sheet":"Fall & Spring ","index":0,"n_rows":35,"n_cols":12,"rows_kept":35,"cut":false,"hidden":false,"merged":[[14,0,14,5],[14,6,14,8],[0,0,0,10],[1,1,1,5],[1,6,1,7],[1,8,1,9],[2,1,2,3],[2,6,2,7],[2,8,2,10],[3,1,3,3],[3,6,3,7],[3,8,3,10],[4,0,4,10],[5,6,5,8],[26,1,26,6],[15,0,15,10],[16,1,16,8],[17,1,17,6],[18,1,18,6],[19,1,19,6],[20,1,20,6],[21,1,21,6],[22,1,22,6],[23,1,23,6],[24,1,24,6],[25,1,25,6],[1048571,5,1048571,8],[27,1,27,6],[28,1,28,6],[29,0,29,5],[29,6,29,8],[30,0,30,5],[30,6,30,8],[31,0,31,7],[31,8,34,10],[32,1,32,7],[33,1,33,7],[34,1,34,7]]}
["Florida Gulf Coast University Faculty Activity Report- FALL and SPRING"]
["Name",null,null,null,null,null,"Term",null,"Term",null,"Year"]
["Status",null,null,null,"Rank","Rank","College/School",null,"College"]
["University ID",null,null,null,"FTE","FTE","Department",null,"Department"]
["Instructional Course Activity"]
["CRS TITLE","CRN","CRS PREFIX","CRS NUM","Schedule Type Code","Class Size","Team Taught/ Cross listed/Mini-Session/ Comments",null,null,"Designated Contact Hours","FTE % of effort","Exclude from Primary Effort"]
[" ",null,null,null,null,null,"                                   ",false,"Overload",null,{"$f":"IF(L7=TRUE,\"0\",(J7*0.08333))","v":0},false]
[" ",null,null,null,null,null,"                                ",false,"Overload",null,{"$f":"IF(L8=TRUE,\"0\",(J8*0.08333))","v":0},false]
[" ",null,null,null,null,null,"                                   ",false,"Overload",null,0,false]
[" ",null,null,null,null,null,"                                   ",false,"Overload",null,0,false]
[null,null,null,null,null,null,"                                   ",false,"Overload",null,0,false]
[null,null,null,null,null,null,"                                   ",false,"Overload",null,0,false]
[null,null,null,null,null,null,"                                   ",false,"Overload",null,{"$f":"J13*0.08333","v":0},false]
[null,null,null,null,null,null,"                                   ",false,"Overload",null,0,false]
[null,null,null,null,null,null,"Total Instructional Course Activity Contact Hours",null,null,{"$f":"SUM(J7:J14)","v":0},{"$f":"SUM(K7:K14)","v":0}]
["Non Instructional - Related Activity"]
["Activity Category","Comments (such as name of activity, grant ID, C-course modifier, scale-up, etc.)",null,null,null,null,null,null,null,"Designated Contact Hours Equivalency","FTE % of effort","Exclude from Primary Effort"]
["Select Activity Category",null,null,null,null,null,null,false,"Overload",null,{"$f":"IF(L18=TRUE,\"0\",(J18*0.08333))","v":0},false]
["Select Activity Category",null,null,null,null,null,null,false,"Overload",null,{"$f":"IF(L19=TRUE,\"0\",(J19*0.08333))","v":0},false]
["Select Activity Category",null,null,null,null,null,null,false,"Overload",null,0,false]
["Select Activity Category",null,null,null,null,null,null,false,"Overload",null,0,false]
["Select Activity Category",null,null,null,null,null,null,false,"Overload",null,0,false]
["Select Activity Category",null,null,null,null,null,null,false,"Overload",null,0,false]
["Select Activity Category",null,null,null,null,null,null,false,"Overload",null,0,false]
["Select Activity Category",null,null,null,null,null,null,false,"Overload",null,0,false]
["Select Activity Category",null,null,null,null,null,null,false,"Overload",null,0,false]
["Select Activity Category",null,null,null,null,null,null,false,"Overload",null,0,false]
["Select Activity Category",null,null,null,null,null,null,false,"Overload",null,0,false]
["Select Activity Category",null,null,null,null,null,null,false,"Overload",null,0,false]
[null,null,null,null,null,null,"Total Non-Instructional Related Activity Contact Hour Equivalencies",null,null,{"$f":"SUM(J18:J29)","v":0},{"$f":"SUM(K18:K29)","v":0}]
[null,null,null,null,null,null,"Total of All Reported Term Activity",null,null,{"$f":"J30+J15","v":0},{"$f":"K30+K15","v":0}]
["Forward digitally signed FAR to Academic Affairs within 2 weeks after the academic term has ended",null,null,null,null,null,null,null,"Must be at least 12 contact hours (100%) for 1.0 FTE, excluding overloads or activities compensated seperately from the primary position"]
["Faculty Signature"]
["Chair Signature"]
["Dean Signature"]

{"sheet":"Summer","index":1,"n_rows":35,"n_cols":13,"rows_kept":35,"cut":false,"hidden":false,"merged":[[14,0,14,5],[14,6,14,8],[0,0,0,10],[1,1,1,5],[1,6,1,7],[1,8,1,9],[2,1,2,3],[2,6,2,7],[2,8,2,10],[3,1,3,3],[3,6,3,7],[3,8,3,10],[4,0,4,10],[5,6,5,8],[21,1,21,6],[22,1,22,6],[23,1,23,6],[24,1,24,6],[25,1,25,6],[16,1,16,8],[17,1,17,6],[18,1,18,6],[19,1,19,6],[20,1,20,6],[29,11,34,11],[5,12,9,13],[1048571,5,1048571,8],[27,1,27,6],[28,1,28,6],[29,0,29,5],[29,6,29,8],[30,0,30,5],[30,6,30,8],[31,0,31,7],[31,8,34,10],[32,1,32,7],[33,1,33,7],[34,1,34,7],[26,1,26,6],[15,0,15,10]]}
["Florida Gulf Coast University Faculty Activity Report- SUMMER"]
["Name",null,null,null,null,null,"Term",null,"Term",null,"Year"]
["Status",null,null,null,"Rank","Rank","College/School",null,"College"]
["University ID",null,null,null,"FTE","FTE","Department",null,"Department"]
["Instructional Course Activity"]
["CRS TITLE","CRN","CRS PREFIX","CRS NUM","Schedule Type Code","Class Size","Team Taught/ Cross listed/Mini-Session/ Comments",null,null,"Designated Contact Hours","FTE % of effort","Exclude from Primary Effort","Please note that totals (percentages) for primary effort during summer term only apply to 12-month faculty."]
[" ",null,null,null,null,null,"                                   ",false,"Overload",null,{"$f":"IF(L7=TRUE,\"0\",(J7*0.125))","v":0},false]
[" ",null,null,null,null,null,"                                ",false,"Overload",null,{"$f":"IF(L8=TRUE,\"0\",(J8*0.125))","v":0},false]
[" ",null,null,null,null,null,"                                   ",false,"Overload",null,0,false]
[" ",null,null,null,null,null,"                                   ",false,"Overload",null,0,false]
[null,null,null,null,null,null,"                                   ",false,"Overload",null,0,false]
[null,null,null,null,null,null,"                                   ",false,"Overload",null,0,false]
[null,null,null,null,null,null,"                                   ",false,"Overload",null,0,false]
[null,null,null,null,null,null,"                                   ",false,"Overload",null,0,false]
[null,null,null,null,null,null,"Total Instructional Course Activity Contact Hours",null,null,{"$f":"SUM(J7:J14)","v":0},{"$f":"SUM(K7:K14)","v":0}]
["Non Instructional - Related Activity"]
["Activity Category","Comments (such as name of activity, grant ID, C-course modifier, scale-up, etc.)",null,null,null,null,null,null,null,"Designated Contact Hours Equivalency","FTE % of effort","Exclude from Primary Effort"]
["Select Activity Category",null,null,null,null,null,null,false,"Overload",null,{"$f":"IF(L18=TRUE,\"0\",(J18*0.125))","v":0},false]
["Select Activity Category",null,null,null,null,null,null,false,"Overload",null,{"$f":"IF(L19=TRUE,\"0\",(J19*0.125))","v":0},false]
["Select Activity Category",null,null,null,null,null,null,false,"Overload",null,0,false]
["Select Activity Category",null,null,null,null,null,null,false,"Overload",null,0,false]
["Select Activity Category",null,null,null,null,null,null,false,"Overload",null,0,false]
["Select Activity Category",null,null,null,null,null,null,false,"Overload",null,0,false]
["Select Activity Category",null,null,null,null,null,null,false,"Overload",null,0,false]
["Select Activity Category",null,null,null,null,null,null,false,"Overload",null,0,false]
["Select Activity Category",null,null,null,null,null,null,false,"Overload",null,0,false]
["Select Activity Category",null,null,null,null,null,null,false,"Overload",null,0,false]
["Select Activity Category",null,null,null,null,null,null,false,"Overload",null,0,false]
["Select Activity Category",null,null,null,null,null,null,false,"Overload",null,0,false]
[null,null,null,null,null,null,"Total Non-Instructional Related Activity Contact Hour Equivalencies",null,null,{"$f":"SUM(J18:J29)","v":0},{"$f":"SUM(K18:K29)","v":0},"Note… while the total effort should be 8 hours, a load of at least 4 hours during sessions A or B can also garner an overload if exceeded, so a 5th hour in A could justify a 1 hr overload."]
[null,null,null,null,null,null,"Total of All Reported Term Activity",null,null,{"$f":"J30+J15","v":0},{"$f":"K30+K15","v":0}]
["Forward digitally signed FAR to Academic Affairs within 2 weeks after the academic term has ended",null,null,null,null,null,null,null,"Must be at least 8 contact hours (100%) for 12-month faculty, excluding overloads or activities compensated separately from the primary position"]
["Faculty Signature"]
["Chair Signature"]
["Dean Signature"]

{"sheet":"Drop-Down References","index":2,"n_rows":32,"n_cols":6,"rows_kept":32,"cut":false,"hidden":true,"merged":[]}
["Term","Year","College","Department","FTE","(16) Supervision of Cooperative Education"]
["Summer",2023,"College of Arts and Sciences","Biological Sciences",0.25,"(21) Secondary Travel"]
["Fall",2024,"Lutgert College of Business","Bower School of Music and the Arts",0.5,"(22) Department Research"]
["Spring",2025,"Marieb Health and Human Services","Chemistry and Physics",0.75,"(22r)Sponsored Research"]
[null,2026,"U.A. Whitaker College of Engineering","Communication and Philosophy",1,"(25) Other Instructional Effort-Non-Credit"]
[null,2027,"College of Education","Integrated Studies",null,"(32) Public Service"]
[null,2028,"The Honors College","Justice Studies",null,"(35) State Mandated Service (K-12 Schools)"]
[null,2029,"School","Language and Literature",null,"(40) Academic Advising"]
[null,2030,"Bower School of Music and the Arts","Mathematics",null,"(46) Academic Administration"]
[null,null,"Daveler & Kauanui School of Entrepreneurship","Poli-Sci and Public Admin",null,"(47) University Governance"]
[null,null,"School of Nursing","Psychology",null,"(89) Leave of Absence w/Pay"]
[null,null,"School of Resort and Hospitality Management","Health Sciences",null,"(90) Release time"]
[null,null,"The Water School","Counseling",null,"Select Activity Category"]
[null,null,null,"Rehab Sciences","Rank","(16) Supervision of Cooperative Education"]
[null,null,null,"Social Work","01 Professor","(21) Secondary Travel"]
[null,null,null,"Accounting","02 Associate Professor","(22) Department Research"]
[null,null,null,"Agribusiness","03 Assistant Professor","(22r)Sponsored Research"]
[null,null,null,"Economics & Finaince","04 Instructor","(25) Other Instructional Effort-Non-Credit"]
[null,null,null,"Information Systems, Analytics, and Supply Chain","99 No Rank Assigned","(32) Public Service"]
[null,null,null,"Management",null,"(35) State Mandated Service (K-12 Schools)"]
[null,null,null,"Marketing",null,"(40) Academic Advising"]
[null,null,null,"PGA Golf Management",null,"(46) Academic Administration"]
[null,null,null,"Bio-, Civil-, and Environmental Engineering",null,"(47) University Governance"]
[null,null,null,"Computing and Software Engineering",null,"(89) Leave of Absence w/Pay"]
[null,null,null,"Construction Management",null,"(90) Release time"]
[null,null,null,"Music"]
[null,null,null,"Art"]
[null,null,null,"Theatre"]
[null,null,null,"Digital Media Design"]
[null,null,null,"Ecology and Environmental Studies"]
[null,null,null,"Marine and Earth Sciences"]
[null,null,null,"Other"]

{"sheet":"Proposed Fall & Spring","index":3,"n_rows":35,"n_cols":11,"rows_kept":35,"cut":false,"hidden":true,"merged":[[1048571,5,1048571,8],[31,8,34,10],[34,1,34,7],[0,0,0,10],[19,1,19,6],[20,1,20,6],[21,1,21,6],[22,1,22,6],[1,1,1,5],[2,8,2,10],[15,0,15,10],[3,1,3,3],[4,0,4,10],[3,8,3,10],[5,6,5,8],[2,1,2,3],[33,1,33,7],[29,0,29,5],[30,0,30,5],[24,1,24,6],[25,1,25,6],[26,1,26,6],[27,1,27,6],[28,1,28,6],[29,6,29,8],[30,6,30,8],[1,8,1,9],[3,6,3,7],[16,1,16,8],[31,0,31,7],[32,1,32,7],[1,6,1,7],[2,6,2,7],[23,1,23,6],[14,0,14,5],[14,6,14,8],[17,1,17,6],[18,1,18,6]]}
["Florida Gulf Coast University Faculty Activity Report- FALL and SPRING"]
["Name",null,null,null,null,null,"Term",null,"Term",null,"Year"]
["Status",null,null,null,"Rank","Rank","College/School",null,"College"]
["University ID",null,null,null,"FTE","FTE","Department",null,"Department"]
["Instructional Course Activity"]
["CRS TITLE","CRN","CRS PREFIX","CRS NUM","Schedule Type Code","Class Size","Team Taught/ Cross listed/Mini-Session/ Comments",null,null,"Designated Contact Hours","FTE % of effort"]
[" ",null,null,null,null,null,"                                   ",false,"Overload",null,{"$f":"J7*0.08333","v":0}]
[" ",null,null,null,null,null,"                                ",false,"Overload",null,{"$f":"J8*0.08333","v":0}]
[" ",null,null,null,null,null,"                                   ",false,"Overload",null,0]
[" ",null,null,null,null,null,"                                   ",false,"Overload",null,0]
[null,null,null,null,null,null,"                                   ",false,"Overload",null,0]
[null,null,null,null,null,null,"                                   ",false,"Overload",null,0]
[null,null,null,null,null,null,"                                   ",false,"Overload",null,{"$f":"J13*0.08333","v":0}]
[null,null,null,null,null,null,"                                   ",false,"Overload",null,0]
[null,null,null,null,null,null,"Total Instructional Course Activity Contact Hours",null,null,{"$f":"SUM(J7:J14)","v":0},{"$f":"SUM(K7:K14)","v":0}]
["Non Instructional - Related Activity"]
["Activity Category","Comments (such as name of activity, grant ID, C-course modifier, scale-up, etc.)",null,null,null,null,null,null,null,"Designated Contact Hours Equivalency","FTE % of effort"]
["(16) Supervision of Cooperative Education",null,null,null,null,null,null,false,"Overload",null,{"$f":"J18*0.08333","v":0}]
["(21) Secondary Travel",null,null,null,null,null,null,false,"Overload",null,{"$f":"J19*0.08333","v":0}]
["(22) Department Research",null,null,null,null,null,null,false,"Overload",null,0]
["(22r)Sponsored Research","Grant ID(s): ",null,null,null,null,null,false,"Overload",null,0]
["(25) Other Instructional Effort-Non-Credit",null,null,null,null,null,null,false,"Overload",null,0]
["(32) Public Service",null,null,null,null,null,null,false,"Overload",null,0]
["(35) State Mandated Service (K-12 Schools)",null,null,null,null,null,null,false,"Overload",null,0]
["(40) Academic Advising",null,null,null,null,null,null,false,"Overload",null,0]
["(46) Academic Administration",null,null,null,null,null,null,false,"Overload",null,0]
["(47) University Governance",null,null,null,null,null,null,false,"Overload",null,0]
["(89) Leave of Absence w/Pay",null,null,null,null,null,null,false,"Overload",null,0]
["(90) Release time",null,null,null,null,null,null,false,"Overload",null,{"$f":"J29*0.08333","v":0}]
[null,null,null,null,null,null,"Total Non-Instructional Related Activity Contact Hour Equivalencies",null,null,{"$f":"SUM(J18:J29)","v":0},{"$f":"SUM(K18:K29)","v":0}]
[null,null,null,null,null,null,"Total of All Reported Term Activity",null,null,{"$f":"J30+J15","v":0},{"$f":"K30+K15","v":0}]
["Forward digitally signed FAR to Academic Affairs within 2 weeks after the academic term has ended",null,null,null,null,null,null,null,"Must be at least 12 contact hours (100%) for 1.0 FTE, excluding overloads or activities compensated seperately from the primary position"]
["Faculty Signature"]
["Chair Signature"]
["Dean Signature"]

{"sheet":"Proposed Summer","index":4,"n_rows":35,"n_cols":11,"rows_kept":35,"cut":false,"hidden":true,"merged":[[14,0,14,5],[14,6,14,8],[0,0,0,10],[1,1,1,5],[1,6,1,7],[1,8,1,9],[2,1,2,3],[2,6,2,7],[2,8,2,10],[3,1,3,3],[3,6,3,7],[3,8,3,10],[4,0,4,10],[5,6,5,8],[26,1,26,6],[15,0,15,10],[16,1,16,8],[17,1,17,6],[18,1,18,6],[19,1,19,6],[20,1,20,6],[21,1,21,6],[22,1,22,6],[23,1,23,6],[24,1,24,6],[25,1,25,6],[27,1,27,6],[28,1,28,6],[29,0,29,5],[29,6,29,8],[30,0,30,5],[30,6,30,8],[31,0,31,7],[31,8,34,10],[32,1,32,7],[33,1,33,7],[34,1,34,7]]}
["Florida Gulf Coast University Faculty Activity Report- SUMMER TERM"]
["Name",null,null,null,null,null,"Term",null,"Summer",null,"Year"]
["Status",null,null,null,"Rank","Rank","College/School",null,"College"]
["University ID",null,null,null,"FTE","FTE","Department",null,"Department"]
["Instructional Course Activity"]
["CRS TITLE","CRN","CRS PREFIX","CRS NUM","Schedule Type Code","Class Size","Team Taught/ Cross listed/Mini-Session/ Comments",null,null,"Designated Contact Hours","FTE % of effort"]
[" ",null,null,null,null,null,"                                   ",false,"Overload",null,{"$f":"J7*0.08333","v":0}]
[" ",null,null,null,null,null,"                                ",false,"Overload",null,{"$f":"J8*0.08333","v":0}]
[" ",null,null,null,null,null,"                                   ",false,"Overload",null,0]
[" ",null,null,null,null,null,"                                   ",false,"Overload",null,0]
[null,null,null,null,null,null,"                                   ",false,"Overload",null,0]
[null,null,null,null,null,null,"                                   ",false,"Overload",null,0]
[null,null,null,null,null,null,"                                   ",false,"Overload",null,0]
[null,null,null,null,null,null,"                                   ",false,"Overload",null,0]
[null,null,null,null,null,null,"Total Instructional Course Activity Contact Hours",null,null,{"$f":"SUM(J7:J14)","v":0},{"$f":"SUM(K7:K14)","v":0}]
["Non Instructional - Related Activity"]
["Activity Category","Comments (such as name of activity, grant ID, C-course modifier, scale-up, etc.)",null,null,null,null,null,null,null,"Designated Contact Hours Equivalency","FTE % of effort"]
["(16) Supervision of Cooperative Education",null,null,null,null,null,null,false,"Overload",null,{"$f":"J18*0.08333","v":0}]
["(21) Secondary Travel",null,null,null,null,null,null,false,"Overload",null,{"$f":"J19*0.08333","v":0}]
["(22) Department Research",null,null,null,null,null,null,false,"Overload",null,0]
["(22r)Sponsored Research","Grant ID(s): ",null,null,null,null,null,false,"Overload",null,0]
["(25) Other Instructional Effort-Non-Credit",null,null,null,null,null,null,false,"Overload",null,0]
["(32) Public Service",null,null,null,null,null,null,false,"Overload",null,0]
["(35) State Mandated Service (K-12 Schools)",null,null,null,null,null,null,false,"Overload",null,0]
["(40) Academic Advising",null,null,null,null,null,null,false,"Overload",null,0]
["(46) Academic Administration",null,null,null,null,null,null,false,"Overload",null,0]
["(47) University Governance",null,null,null,null,null,null,false,"Overload",null,0]
["(89) Leave of Absence w/Pay",null,null,null,null,null,null,false,"Overload",null,0]
["(90) Release time",null,null,null,null,null,null,false,"Overload",null,{"$f":"J29*0.08333","v":0}]
[null,null,null,null,null,null,"Total Non-Instructional Related Activity Contact Hour Equivalencies",null,null,{"$f":"SUM(J18:J29)","v":0},{"$f":"SUM(K18:K29)","v":0}]
[null,null,null,null,null,null,"Total of All Reported Term Activity",null,null,{"$f":"J30+J15","v":0},{"$f":"K30+K15","v":0}]
["Forward digitally signed FAR to Academic Affairs within 2 weeks after the academic term has ended",null,null,null,null,null,null,null,"Must be at least 8 contact hours (100%) for 12-month faculty, excluding overloads or activities compensated seperately from the primary position"]
["Faculty Signature"]
["Chair Signature"]
["Dean Signature"]

{"sheet":"Simple Example","index":5,"n_rows":35,"n_cols":10,"rows_kept":35,"cut":false,"hidden":true,"merged":[[16,1,16,6],[0,0,0,9],[1,1,1,5],[1,7,1,9],[2,1,2,3],[2,7,2,9],[3,1,3,3],[3,7,3,9],[4,0,4,9],[5,6,5,7],[14,0,14,5],[14,6,14,7],[15,0,15,9],[28,1,28,6],[17,1,17,6],[18,1,18,6],[19,1,19,6],[20,1,20,6],[21,1,21,6],[22,1,22,6],[23,1,23,6],[24,1,24,6],[25,1,25,6],[26,1,26,6],[27,1,27,6],[1048571,5,1048571,7],[29,0,29,5],[29,6,29,7],[30,0,30,5],[30,6,30,7],[31,0,31,6],[31,7,34,9],[32,1,32,6],[33,1,33,6],[34,1,34,6]],"read":"row_number_cap"}
["Florida Gulf Coast University Faculty Activity Report"]
["Name","John Doe",null,null,null,null,"Term"]
["Status",null,null,null,"Rank",null,"College/School"]
["University ID","815 123 456",null,null,"FTE",null,"Department"]
["Instructional Course Activity"]
["CRS TITLE","CRN","CRS PREFIX","CRS NUM","Schedule Type Code","Class Size","Team Taught/ Cross listed/Mini-Session/ Comments",null,"Designated Contact Hours","FTE % of effort"]
["Drawing 1",85469,"ART",1011,"C",47,"                                   ",null,3,{"$f":"I7*0.08333","v":0.24998999999999999}]
["Advanced Mixed Media ",85632,"ART",4575,"C",20,"                                ",null,3,{"$f":"I8*0.08333","v":0.24998999999999999}]
["Portfolio Management",85296,"ART",3550,"C",38,"                                   ",null,3,0.24998999999999999]
[" ",null,null,null,null,null,"                                   ",null,null,0]
[null,null,null,null,null,null,"                                   ",null,null,0]
[null,null,null,null,null,null,"                                   ",null,null,0]
[null,null,null,null,null,null,"                                   ",null,null,0]
[null,null,null,null,null,null,"                                   ",null,null,0]
[null,null,null,null,null,null,"Total Instructional Course Activity Contact Hours",null,{"$f":"SUM(I7:I14)","v":9},{"$f":"SUM(J7:J14)","v":0.74997000000000003}]
["Non Instructional - Related Activity"]
["Activity Category","Comments (such as name of activity, grant ID, C-course modifier, scale-up, etc.)",null,null,null,null,null,null,"Designated Contact Hours Equivalency","FTE % of effort"]
["(16) Supervision of Cooperative Education",null,null,null,null,null,null,null,null,{"$f":"I18*0.08333","v":0}]
["(21) Secondary Travel",null,null,null,null,null,null,null,null,{"$f":"I19*0.08333","v":0}]
["(22) Department Research",null,null,null,null,null,null,null,null,0]
["(22r)Sponsored Research","Grant ID(s): ",null,null,null,null,null,null,null,0]
["(25) Other Instructional Effort-Non-Credit","Oversaw \"ART Display Days\" exhibit",null,null,null,null,null,null,1.5,0.12499499999999999]
["(32) Public Service","Taught Immokalee art camp x 6 weeks",null,null,null,null,null,null,1.5,0.12499499999999999]
["(35) State Mandated Service (K-12 Schools)",null,null,null,null,null,null,null,null,0]
["(40) Academic Advising",null,null,null,null,null,null,null,null,0]
["(46) Academic Administration",null,null,null,null,null,null,null,null,0]
["(47) University Governance",null,null,null,null,null,null,null,null,0]
["(89) Leave of Absence w/Pay",null,null,null,null,null,null,null,null,0]
["(90) Release time",null,null,null,null,null,null,null,null,{"$f":"I29*0.08333","v":0}]
[null,null,null,null,null,null,"Total Non-Instructional Related Activity Contact Hour Equivalencies",null,{"$f":"SUM(I18:I29)","v":3},{"$f":"SUM(J18:J29)","v":0.24998999999999999}]
[null,null,null,null,null,null,"Total of All Reported Term Activity",null,{"$f":"I30+I15","v":12},{"$f":"J30+J15","v":0.99995999999999996}]
["Forward digitally signed FAR to Academic Affairs within 2 weeks after the academic term has ended",null,null,null,null,null,null,"Must be at least 12 contact hours (100%) for 1.0 FTE, excluding overloads or activities compensated seperately from the primary position"]
["Faculty Signature"]
["Chair Signature"]
["Dean Signature"]

{"sheet":"Med Example","index":6,"n_rows":35,"n_cols":10,"rows_kept":35,"cut":false,"hidden":true,"merged":[[1048571,5,1048571,7],[29,0,29,5],[29,6,29,7],[30,0,30,5],[30,6,30,7],[31,0,31,6],[31,7,34,9],[32,1,32,6],[33,1,33,6],[34,1,34,6],[28,1,28,6],[17,1,17,6],[18,1,18,6],[19,1,19,6],[20,1,20,6],[21,1,21,6],[22,1,22,6],[23,1,23,6],[24,1,24,6],[25,1,25,6],[26,1,26,6],[27,1,27,6],[16,1,16,6],[0,0,0,9],[1,1,1,5],[1,7,1,9],[2,1,2,3],[2,7,2,9],[3,1,3,3],[3,7,3,9],[4,0,4,9],[5,6,5,7],[14,0,14,5],[14,6,14,7],[15,0,15,9]],"read":"row_number_cap"}
["Florida Gulf Coast University Faculty Activity Report"]
["Name","John Doe",null,null,null,null,"Term"]
["Status",null,null,null,"Rank",null,"College/School"]
["University ID","815 123 456",null,null,"FTE",null,"Department"]
["Instructional Course Activity"]
["CRS TITLE","CRN","CRS PREFIX","CRS NUM","Schedule Type Code","Class Size","Team Taught/ Cross listed/Mini-Session/ Comments",null,"Designated Contact Hours","FTE % of effort"]
["Drawing 1",85469,"ART",1011,"C",47,"TT 50%",null,1.5,{"$f":"I7*0.08333","v":0.12499499999999999}]
["Advanced Mixed Media ",85632,"ART",4575,"C",20,"CL with 85633",null,1.5,{"$f":"I8*0.08333","v":0.12499499999999999}]
["Portfolio Management",85296,"ART",3550,"C",38,"                                   ",null,3,0.24998999999999999]
["Advanced Mixed Media ",85633,"ART",4575,"C",14,"CL with 85632",null,1.5,0.12499499999999999]
["Senior Portfolio",84471,"ART",5148,null,6,"                                   ",null,1,8.3330000000000001E-2]
[null,null,null,null,null,null,"                                   ",null,null,0]
[null,null,null,null,null,null,"                                   ",null,null,0]
[null,null,null,null,null,null,"                                   ",null,null,0]
[null,null,null,null,null,null,"Total Instructional Course Activity Contact Hours",null,{"$f":"SUM(I7:I14)","v":8.5},{"$f":"SUM(J7:J14)","v":0.70830499999999996}]
["Non Instructional - Related Activity"]
["Activity Category","Comments (such as name of activity, grant ID, C-course modifier, scale-up, etc.)",null,null,null,null,null,null,"Designated Contact Hours Equivalency","FTE % of effort"]
["(16) Supervision of Cooperative Education",null,null,null,null,null,null,null,null,{"$f":"I18*0.08333","v":0}]
["(21) Secondary Travel",null,null,null,null,null,null,null,null,{"$f":"I19*0.08333","v":0}]
["(22) Department Research",null,null,null,null,null,null,null,null,0]
["(22r)Sponsored Research","Grant ID(s): ",null,null,null,null,null,null,null,0]
["(25) Other Instructional Effort-Non-Credit","Oversaw \"ART Display Days\" exhibit",null,null,null,null,null,null,1.5,0.12499499999999999]
["(32) Public Service","Taught Immokalee art camp x 6 weeks",null,null,null,null,null,null,1.5,0.12499499999999999]
["(35) State Mandated Service (K-12 Schools)",null,null,null,null,null,null,null,null,0]
["(40) Academic Advising",null,null,null,null,null,null,null,null,0]
["(46) Academic Administration",null,null,null,null,null,null,null,null,0]
["(47) University Governance",null,null,null,null,null,null,null,null,0]
["(89) Leave of Absence w/Pay",null,null,null,null,null,null,null,null,0]
["(90) Release time",null,null,null,null,null,null,null,null,{"$f":"I29*0.08333","v":0}]
[null,null,null,null,null,null,"Total Non-Instructional Related Activity Contact Hour Equivalencies",null,{"$f":"SUM(I18:I29)","v":3},{"$f":"SUM(J18:J29)","v":0.24998999999999999}]
[null,null,null,null,null,null,"Total of All Reported Term Activity",null,{"$f":"I30+I15","v":11.5},{"$f":"J30+J15","v":0.9582949999999999}]
["Forward digitally signed FAR to Academic Affairs within 2 weeks after the academic term has ended",null,null,null,null,null,null,"Must be at least 12 contact hours (100%) for 1.0 FTE, excluding overloads or activities compensated seperately from the primary position"]
["Faculty Signature"]
["Chair Signature"]
["Dean Signature"]

{"sheet":"Complex Example","index":7,"n_rows":35,"n_cols":10,"rows_kept":35,"cut":false,"hidden":true,"merged":[[1048571,5,1048571,7],[29,0,29,5],[29,6,29,7],[30,0,30,5],[30,6,30,7],[31,0,31,6],[31,7,34,9],[32,1,32,6],[33,1,33,6],[34,1,34,6],[28,1,28,6],[17,1,17,6],[18,1,18,6],[19,1,19,6],[20,1,20,6],[21,1,21,6],[22,1,22,6],[23,1,23,6],[24,1,24,6],[25,1,25,6],[26,1,26,6],[27,1,27,6],[16,1,16,6],[0,0,0,9],[1,1,1,5],[1,7,1,9],[2,1,2,3],[2,7,2,9],[3,1,3,3],[3,7,3,9],[4,0,4,9],[5,6,5,7],[14,0,14,5],[14,6,14,7],[15,0,15,9]],"read":"row_number_cap"}
["Florida Gulf Coast University Faculty Activity Report"]
["Name","John Doe",null,null,null,null,"Term"]
["Status",null,null,null,"Rank",null,"College/School"]
["University ID","815 123 456",null,null,"FTE",null,"Department"]
["Instructional Course Activity"]
["CRS TITLE","CRN","CRS PREFIX","CRS NUM","Schedule Type Code","Class Size","Team Taught/ Cross listed/Mini-Session/ Comments",null,"Designated Contact Hours","FTE % of effort"]
["Drawing 1",85469,"ART",1011,"C",47,"TT 50%",null,1.5,{"$f":"I7*0.08333","v":0.12499499999999999}]
["Advanced Mixed Media ",85632,"ART",4575,"C",20,"CL with 85633",null,1.5,{"$f":"I8*0.08333","v":0.12499499999999999}]
["Portfolio Management",85296,"ART",3550,"C",38,"                                   ",null,3,0.24998999999999999]
["Advanced Mixed Media ",85633,"ART",4575,"C",14,"CL with 85632",null,1.5,0.12499499999999999]
["Senior Portfolio",84471,"ART",5148,null,6,"3 cr incl 1 hr ovl",null,2,0.16666]
[null,null,null,null,null,null,"                                   ",null,null,0]
[null,null,null,null,null,null,"                                   ",null,null,0]
[null,null,null,null,null,null,"                                   ",null,null,0]
[null,null,null,null,null,null,"Total Instructional Course Activity Contact Hours",null,{"$f":"SUM(I7:I14)","v":9.5},{"$f":"SUM(J7:J14)","v":0.79163499999999998}]
["Non Instructional - Related Activity"]
["Activity Category","Comments (such as name of activity, grant ID, C-course modifier, scale-up, etc.)",null,null,null,null,null,null,"Designated Contact Hours Equivalency","FTE % of effort"]
["(16) Supervision of Cooperative Education",null,null,null,null,null,null,null,null,{"$f":"I18*0.08333","v":0}]
["(21) Secondary Travel",null,null,null,null,null,null,null,null,{"$f":"I19*0.08333","v":0}]
["(22) Department Research",null,null,null,null,null,null,null,null,0]
["(22r)Sponsored Research","Grant ID(s): ",null,null,null,null,null,null,null,0]
["(25) Other Instructional Effort-Non-Credit","Oversaw \"ART Display Days\" 2024 exhibit;  OVL for CRN 84471( 1 cr)",null,null,null,null,null,null,2.5,0.20832500000000001]
["(32) Public Service","Taught Immokalee fall art camp x 6 weeks",null,null,null,null,null,null,1.5,0.12499499999999999]
["(35) State Mandated Service (K-12 Schools)",null,null,null,null,null,null,null,null,0]
["(40) Academic Advising",null,null,null,null,null,null,null,null,0]
["(46) Academic Administration",null,null,null,null,null,null,null,null,0]
["(47) University Governance",null,null,null,null,null,null,null,null,0]
["(89) Leave of Absence w/Pay",null,null,null,null,null,null,null,null,0]
["(90) Release time",null,null,null,null,null,null,null,null,{"$f":"I29*0.08333","v":0}]
[null,null,null,null,null,null,"Total Non-Instructional Related Activity Contact Hour Equivalencies",null,{"$f":"SUM(I18:I29)","v":4},{"$f":"SUM(J18:J29)","v":0.33332000000000001}]
[null,null,null,null,null,null,"Total of All Reported Term Activity",null,{"$f":"I30+I15","v":13.5},{"$f":"J30+J15","v":1.1249549999999999}]
["Forward digitally signed FAR to Academic Affairs within 2 weeks after the academic term has ended",null,null,null,null,null,null,"Must be at least 12 contact hours (100%) for 1.0 FTE, excluding overloads or activities compensated seperately from the primary position"]
["Faculty Signature"]
["Chair Signature"]
["Dean Signature"]